[Event "Titled Tuesday Blitz January 17 Early 2023"]
[White "Sarana, Alexey"]
[Black "Bharath Subramaniyam H"]
[WhiteFideId "24133795"]
[BlackFideId "46634827"]
[WhiteElo "2685"]
[BlackElo "2517"]
[Result "1-0"]
[Round "04"]
[TimeControl "180+2"]
[Date "2023.01.17"]
[WhiteClock "0:00:08"]
[BlackClock "0:00:08"]

1. c4 {[%clk 0:02:51]}  e6 {[%clk 0:02:58]} 2. Nc3 {[%clk 0:02:51]}  d5 {[%clk 0:02:57]} 3. d4 {[%clk 0:02:52]}  Nf6 {[%clk 0:02:57]} 4. cxd5 {[%clk 0:02:52]}  exd5 {[%clk 0:02:57]} 5. Bf4 {[%clk 0:02:52]}  Be7 {[%clk 0:02:55]} 6. e3 {[%clk 0:02:53]}  O-O {[%clk 0:02:55]} 7. Bd3 {[%clk 0:02:51]}  c6 {[%clk 0:02:42]} 8. Nf3 {[%clk 0:02:49]}  Bg4 {[%clk 0:02:40]} 9. Qb3 {[%clk 0:02:47]}  Qb6 {[%clk 0:02:37]} 10. Ne5 {[%clk 0:02:47]}  Be6 {[%clk 0:02:35]} 11. Qc2 {[%clk 0:02:45]}  Na6 {[%clk 0:02:28]} 12. a3 {[%clk 0:02:42]}  c5 {[%clk 0:02:29]} 13. O-O {[%clk 0:02:16]}  cxd4 {[%clk 0:02:23]} 14. Na4 {[%clk 0:02:17]}  Qa5 {[%clk 0:02:10]} 15. exd4 {[%clk 0:02:16]}  Rfc8 {[%clk 0:02:10]} 16. Qd1 {[%clk 0:02:17]}  Ne4 {[%clk 0:02:02]} 17. b4 {[%clk 0:02:10]}  Qd8 {[%clk 0:02:02]} 18. Nc5 {[%clk 0:02:10]}  Naxc5 {[%clk 0:02:01]} 19. dxc5 {[%clk 0:02:05]}  Bf6 {[%clk 0:01:56]} 20. Qf3 {[%clk 0:01:23]}  Bf5 {[%clk 0:01:04]} 21. Rad1 {[%clk 0:01:12]}  Qe7 {[%clk 0:01:00]} 22. Ng4 {[%clk 0:01:10]}  Bb2 {[%clk 0:00:56]} 23. Ne3 {[%clk 0:00:54]}  Be6 {[%clk 0:00:55]} 24. Bxe4 {[%clk 0:00:44]}  dxe4 {[%clk 0:00:56]} 25. Qxe4 {[%clk 0:00:44]}  Re8 {[%clk 0:00:56]} 26. Qb1 {[%clk 0:00:37]}  Qf6 {[%clk 0:00:49]} 27. Bg5 {[%clk 0:00:31]}  Qe5 {[%clk 0:00:43]} 28. Bf4 {[%clk 0:00:25]}  Qf6 {[%clk 0:00:43]} 29. Nd5 {[%clk 0:00:17]}  Bxd5 {[%clk 0:00:42]} 30. Rxd5 {[%clk 0:00:18]}  Bxa3 {[%clk 0:00:42]} 31. Be3 {[%clk 0:00:14]}  a5 {[%clk 0:00:38]} 32. bxa5 {[%clk 0:00:13]}  Qa6 {[%clk 0:00:36]} 33. Rfd1 {[%clk 0:00:12]}  h6 {[%clk 0:00:29]} 34. h3 {[%clk 0:00:12]}  Qc6 {[%clk 0:00:27]} 35. Rd6 {[%clk 0:00:09]}  Qc8 {[%clk 0:00:27]} 36. Qb5 {[%clk 0:00:07]}  Qc7 {[%clk 0:00:22]} 37. Rd7 {[%clk 0:00:05]}  Qxa5 {[%clk 0:00:21]} 38. Rxb7 {[%clk 0:00:05]}  Qxb5 {[%clk 0:00:17]} 39. Rxb5 {[%clk 0:00:06]}  Rec8 {[%clk 0:00:15]} 40. Rd3 {[%clk 0:00:06]}  Ra4 {[%clk 0:00:13]} 41. Kf1 {[%clk 0:00:05]}  Rca8 {[%clk 0:00:12]} 42. Ke2 {[%clk 0:00:05]}  Rc4 {[%clk 0:00:12]} 43. Rdb3 {[%clk 0:00:06]}  Bc1 {[%clk 0:00:10]} 44. Kd3 {[%clk 0:00:06]}  Raa4 {[%clk 0:00:10]} 45. Rc3 {[%clk 0:00:05]}  Rxc3+ {[%clk 0:00:07]} 46. Kxc3 {[%clk 0:00:06]}  Bxe3 {[%clk 0:00:08]} 47. Rb8+ {[%clk 0:00:06]}  Kh7 {[%clk 0:00:07]} 48. fxe3 {[%clk 0:00:07]}  Kg6 {[%clk 0:00:08]} 49. Kb3 {[%clk 0:00:04]}  Re4 {[%clk 0:00:08]} 50. c6 {[%clk 0:00:04]}  Rxe3+ {[%clk 0:00:08]} 51. Kc4 {[%clk 0:00:04]}  Re1 {[%clk 0:00:08]} 52. Kd5 {[%clk 0:00:05]}  Rd1+ {[%clk 0:00:08]} 53. Ke5 {[%clk 0:00:04]}  Rc1 {[%clk 0:00:08]} 54. Kd6 {[%clk 0:00:05]}  Rd1+ {[%clk 0:00:09]} 55. Ke7 {[%clk 0:00:05]}  Re1+ {[%clk 0:00:09]} 56. Kd8 {[%clk 0:00:06]}  Rd1+ {[%clk 0:00:09]} 57. Kc8 {[%clk 0:00:06]}  Kf6 {[%clk 0:00:10]} 58. c7 {[%clk 0:00:06]}  Ke7 {[%clk 0:00:10]} 59. Rb2 {[%clk 0:00:05]}  Rc1 {[%clk 0:00:10]} 60. Kb7 {[%clk 0:00:05]}  Kd7 {[%clk 0:00:03]} 61. Rd2+ {[%clk 0:00:05]}  Ke6 {[%clk 0:00:04]} 62. c8=Q+ {[%clk 0:00:06]}  Rxc8 {[%clk 0:00:05]} 63. Kxc8 {[%clk 0:00:06]}  f5 {[%clk 0:00:05]} 64. Re2+ {[%clk 0:00:06]}  Kd5 {[%clk 0:00:05]} 65. Kd7 {[%clk 0:00:07]}  g5 {[%clk 0:00:06]} 66. Ke7 {[%clk 0:00:07]}  f4 {[%clk 0:00:07]} 67. Kf6 {[%clk 0:00:08]}  h5 {[%clk 0:00:08]} 68. Kxg5 {[%clk 0:00:08]} 1-0


[Site "https://www.chess.com"]

[Event "Titled Tuesday Blitz January 17 Early 2023"]
[White "Babazada, Khazar"]
[Black "Deac, Bogdan-Daniel"]
[WhiteFideId "13413554"]
[BlackFideId "1226380"]
[WhiteElo "2474"]
[BlackElo "2700"]
[Result "1-0"]
[Round "04"]
[TimeControl "180+2"]
[Date "2023.01.17"]
[WhiteClock "0:00:15"]
[BlackClock "0:00:03"]

1. Nf3 {[%clk 0:03:00]}  d5 {[%clk 0:02:59]} 2. c4 {[%clk 0:03:00]}  e6 {[%clk 0:02:59]} 3. e3 {[%clk 0:03:00]}  Nf6 {[%clk 0:02:58]} 4. d4 {[%clk 0:03:01]}  a6 {[%clk 0:02:57]} 5. Nc3 {[%clk 0:03:01]}  dxc4 {[%clk 0:02:53]} 6. Bxc4 {[%clk 0:03:02]}  b5 {[%clk 0:02:54]} 7. Be2 {[%clk 0:03:02]}  Bb7 {[%clk 0:02:54]} 8. O-O {[%clk 0:03:01]}  Nbd7 {[%clk 0:02:54]} 9. Qc2 {[%clk 0:03:01]}  c5 {[%clk 0:02:53]} 10. dxc5 {[%clk 0:03:01]}  Bxc5 {[%clk 0:02:54]} 11. Rd1 {[%clk 0:03:00]}  Rc8 {[%clk 0:02:54]} 12. a3 {[%clk 0:02:52]}  Qc7 {[%clk 0:02:43]} 13. Bd2 {[%clk 0:02:38]}  Bd6 {[%clk 0:02:38]} 14. h3 {[%clk 0:02:33]}  O-O {[%clk 0:02:13]} 15. Rac1 {[%clk 0:02:32]}  Qb8 {[%clk 0:02:13]} 16. Be1 {[%clk 0:02:29]}  Rfd8 {[%clk 0:02:02]} 17. Qb1 {[%clk 0:02:21]}  h6 {[%clk 0:01:48]} 18. Rd4 {[%clk 0:02:11]}  Ne5 {[%clk 0:00:37]} 19. Nxe5 {[%clk 0:02:05]}  Bxe5 {[%clk 0:00:38]} 20. Rxd8+ {[%clk 0:02:05]}  Rxd8 {[%clk 0:00:39]} 21. Rd1 {[%clk 0:02:05]}  Rc8 {[%clk 0:00:37]} 22. Qd3 {[%clk 0:01:46]}  Qa8 {[%clk 0:00:33]} 23. Bf1 {[%clk 0:01:30]}  Bc6 {[%clk 0:00:27]} 24. Na2 {[%clk 0:01:28]}  Bxb2 {[%clk 0:00:23]} 25. Nb4 {[%clk 0:01:25]}  Be4 {[%clk 0:00:21]} 26. Qb3 {[%clk 0:01:25]}  Be5 {[%clk 0:00:19]} 27. a4 {[%clk 0:01:23]}  a5 {[%clk 0:00:17]} 28. Nd3 {[%clk 0:01:23]}  b4 {[%clk 0:00:09]} 29. Nxe5 {[%clk 0:01:22]}  Bc2 {[%clk 0:00:09]} 30. Rd8+ {[%clk 0:01:19]}  Rxd8 {[%clk 0:00:09]} 31. Qxc2 {[%clk 0:01:19]}  Rc8 {[%clk 0:00:08]} 32. Bc4 {[%clk 0:01:17]}  Qb7 {[%clk 0:00:08]} 33. Qd3 {[%clk 0:01:15]}  Qc7 {[%clk 0:00:08]} 34. f4 {[%clk 0:01:14]}  Rd8 {[%clk 0:00:08]} 35. Qe2 {[%clk 0:01:14]}  Nd7 {[%clk 0:00:08]} 36. Bh4 {[%clk 0:01:13]}  Rc8 {[%clk 0:00:06]} 37. Ba6 {[%clk 0:01:11]}  Nxe5 {[%clk 0:00:07]} 38. fxe5 {[%clk 0:01:10]}  Rb8 {[%clk 0:00:06]} 39. Bd3 {[%clk 0:01:08]}  Qc1+ {[%clk 0:00:06]} 40. Kh2 {[%clk 0:01:08]}  b3 {[%clk 0:00:05]} 41. Qf3 {[%clk 0:01:07]}  b2 {[%clk 0:00:04]} 42. Qe4 {[%clk 0:01:03]}  g6 {[%clk 0:00:04]} 43. Bb1 {[%clk 0:01:04]}  Qc3 {[%clk 0:00:04]} 44. Bf6 {[%clk 0:01:02]}  Qb4 {[%clk 0:00:04]} 45. Qd3 {[%clk 0:01:00]}  Qxa4 {[%clk 0:00:04]} 46. Qd6 {[%clk 0:00:58]}  Qe8 {[%clk 0:00:04]} 47. Qd4 {[%clk 0:00:54]}  a4 {[%clk 0:00:04]} 48. Qf4 {[%clk 0:00:54]}  Kh7 {[%clk 0:00:03]} 49. h4 {[%clk 0:00:53]}  a3 {[%clk 0:00:03]} 50. h5 {[%clk 0:00:33]}  a2 {[%clk 0:00:03]} 51. hxg6+ {[%clk 0:00:34]}  fxg6 {[%clk 0:00:03]} 52. Qc4 {[%clk 0:00:35]}  Qf7 {[%clk 0:00:03]} 53. Qxa2 {[%clk 0:00:33]}  h5 {[%clk 0:00:03]} 54. Qc4 {[%clk 0:00:29]}  Qd7 {[%clk 0:00:03]} 55. Qe4 {[%clk 0:00:29]}  Qf7 {[%clk 0:00:02]} 56. Qf3 {[%clk 0:00:29]}  Kg8 {[%clk 0:00:02]} 57. Qg3 {[%clk 0:00:28]}  Kf8 {[%clk 0:00:02]} 58. Bxg6 {[%clk 0:00:23]}  Qg8 {[%clk 0:00:02]} 59. Qg5 {[%clk 0:00:19]}  Qxg6 {[%clk 0:00:01]} 60. Qxg6 {[%clk 0:00:19]}  Rb7 {[%clk 0:00:02]} 61. Qh6+ {[%clk 0:00:18]}  Ke8 {[%clk 0:00:03]} 62. Qh8+ {[%clk 0:00:15]}  Kd7 {[%clk 0:00:03]} 63. Qh7+ {[%clk 0:00:14]}  Kc6 {[%clk 0:00:03]} 64. Qb1 {[%clk 0:00:15]}  Kc7 {[%clk 0:00:03]} 65. Be7 {[%clk 0:00:15]} 1-0


[Site "https://www.chess.com"]

[Event "Titled Tuesday Blitz January 17 Early 2023"]
[White "Gorodetzky, David"]
[Black "Paravyan, David"]
[WhiteFideId "2813416"]
[BlackFideId "4194985"]
[WhiteElo "2485"]
[BlackElo "2601"]
[Result "1/2-1/2"]
[Round "04"]
[TimeControl "180+2"]
[Date "2023.01.17"]
[WhiteClock "0:00:04"]
[BlackClock "0:00:02"]

1. d4 {[%clk 0:03:00]}  Nf6 {[%clk 0:02:59]} 2. c4 {[%clk 0:03:00]}  g6 {[%clk 0:02:59]} 3. Nc3 {[%clk 0:03:00]}  d5 {[%clk 0:03:00]} 4. e3 {[%clk 0:02:58]}  Bg7 {[%clk 0:02:59]} 5. cxd5 {[%clk 0:02:57]}  Nxd5 {[%clk 0:03:00]} 6. Bc4 {[%clk 0:02:57]}  Nxc3 {[%clk 0:03:00]} 7. bxc3 {[%clk 0:02:57]}  c5 {[%clk 0:03:00]} 8. Nf3 {[%clk 0:02:55]}  O-O {[%clk 0:03:01]} 9. O-O {[%clk 0:02:52]}  Qc7 {[%clk 0:03:01]} 10. Qe2 {[%clk 0:02:52]}  Bg4 {[%clk 0:03:01]} 11. Bb3 {[%clk 0:02:35]}  Nd7 {[%clk 0:03:00]} 12. h3 {[%clk 0:02:34]}  Bxf3 {[%clk 0:03:00]} 13. Qxf3 {[%clk 0:02:34]}  b5 {[%clk 0:03:01]} 14. a4 {[%clk 0:02:30]}  b4 {[%clk 0:02:39]} 15. cxb4 {[%clk 0:02:19]}  cxd4 {[%clk 0:02:38]} 16. Bb2 {[%clk 0:01:46]}  dxe3 {[%clk 0:02:31]} 17. Bxg7 {[%clk 0:01:45]}  exf2+ {[%clk 0:02:03]} 18. Rxf2 {[%clk 0:01:45]}  Kxg7 {[%clk 0:02:02]} 19. Re1 {[%clk 0:01:26]}  Nf6 {[%clk 0:01:59]} 20. Qe3 {[%clk 0:01:18]}  Rab8 {[%clk 0:01:50]} 21. b5 {[%clk 0:01:11]}  a6 {[%clk 0:00:56]} 22. Qxe7 {[%clk 0:01:04]}  Qxe7 {[%clk 0:00:56]} 23. Rxe7 {[%clk 0:01:04]}  axb5 {[%clk 0:00:57]} 24. a5 {[%clk 0:01:05]}  Ra8 {[%clk 0:00:50]} 25. Ra2 {[%clk 0:01:01]}  Ra6 {[%clk 0:00:47]} 26. Rb7 {[%clk 0:00:55]}  Ne4 {[%clk 0:00:42]} 27. Re7 {[%clk 0:00:46]}  Nc5 {[%clk 0:00:36]} 28. Bd5 {[%clk 0:00:45]}  b4 {[%clk 0:00:30]} 29. g4 {[%clk 0:00:25]}  b3 {[%clk 0:00:29]} 30. Rf2 {[%clk 0:00:25]}  Rf6 {[%clk 0:00:19]} 31. Rxf6 {[%clk 0:00:06]}  Kxf6 {[%clk 0:00:20]} 32. Rc7 {[%clk 0:00:07]}  b2 {[%clk 0:00:20]} 33. Ba2 {[%clk 0:00:07]}  Ne4 {[%clk 0:00:15]} 34. Rb7 {[%clk 0:00:07]}  Ra8 {[%clk 0:00:13]} 35. Rxf7+ {[%clk 0:00:05]}  Kg5 {[%clk 0:00:13]} 36. Rb7 {[%clk 0:00:05]}  Rxa5 {[%clk 0:00:10]} 37. Rxb2 {[%clk 0:00:05]}  Kh4 {[%clk 0:00:11]} 38. Kh2 {[%clk 0:00:03]}  Ra3 {[%clk 0:00:10]} 39. Bg8 {[%clk 0:00:02]}  Rxh3+ {[%clk 0:00:10]} 40. Kg2 {[%clk 0:00:03]}  Rg3+ {[%clk 0:00:06]} 41. Kh1 {[%clk 0:00:03]}  Ng5 {[%clk 0:00:05]} 42. Rh2+ {[%clk 0:00:02]}  Nh3 {[%clk 0:00:06]} 43. Re2 {[%clk 0:00:01]}  h6 {[%clk 0:00:05]} 44. Kh2 {[%clk 0:00:01]}  Rxg4 {[%clk 0:00:04]} 45. Be6 {[%clk 0:00:01]}  Nf4 {[%clk 0:00:02]} 46. Bxg4 {[%clk 0:00:02]}  Kxg4 {[%clk 0:00:02]} 47. Re3 {[%clk 0:00:02]}  h5 {[%clk 0:00:03]} 48. Rg3+ {[%clk 0:00:03]}  Kf5 {[%clk 0:00:04]} 49. Ra3 {[%clk 0:00:04]}  g5 {[%clk 0:00:04]} 50. Kg3 {[%clk 0:00:04]}  h4+ {[%clk 0:00:05]} 51. Kf2 {[%clk 0:00:04]}  Kg4 {[%clk 0:00:05]} 52. Rb3 {[%clk 0:00:03]}  h3 {[%clk 0:00:05]} 53. Rg3+ {[%clk 0:00:03]}  Kh4 {[%clk 0:00:05]} 54. Rg1 {[%clk 0:00:04]}  h2 {[%clk 0:00:05]} 55. Rh1 {[%clk 0:00:02]}  Kh3 {[%clk 0:00:06]} 56. Kf3 {[%clk 0:00:02]}  Nh5 {[%clk 0:00:05]} 57. Rxh2+ {[%clk 0:00:02]}  Kxh2 {[%clk 0:00:06]} 58. Kg4 {[%clk 0:00:03]}  Ng3 {[%clk 0:00:02]} 59. Kxg5 {[%clk 0:00:04]} 1/2-1/2


[Site "https://www.chess.com"]

[Event "Titled Tuesday Blitz January 17 Early 2023"]
[White "Eljanov, Pavel"]
[Black "Pultinevicius, Paulius"]
[WhiteFideId "14102951"]
[BlackFideId "12809390"]
[WhiteElo "2705"]
[BlackElo "2537"]
[Result "0-1"]
[Round "04"]
[TimeControl "180+2"]
[Date "2023.01.17"]
[WhiteClock "0:00:01"]
[BlackClock "0:00:04"]

1. c4 {[%clk 0:03:00]}  e6 {[%clk 0:02:55]} 2. g3 {[%clk 0:02:59]}  d5 {[%clk 0:02:52]} 3. Bg2 {[%clk 0:03:00]}  Nf6 {[%clk 0:02:52]} 4. Nf3 {[%clk 0:03:00]}  dxc4 {[%clk 0:02:52]} 5. Qa4+ {[%clk 0:02:59]}  Nbd7 {[%clk 0:02:49]} 6. Qxc4 {[%clk 0:02:58]}  a6 {[%clk 0:02:48]} 7. Qb3 {[%clk 0:02:55]}  c5 {[%clk 0:02:45]} 8. d3 {[%clk 0:02:52]}  Bd6 {[%clk 0:02:31]} 9. a4 {[%clk 0:02:51]}  O-O {[%clk 0:02:19]} 10. Nbd2 {[%clk 0:02:46]}  b6 {[%clk 0:01:51]} 11. Nd4 {[%clk 0:02:32]}  Nd5 {[%clk 0:01:35]} 12. Nxe6 {[%clk 0:02:17]}  fxe6 {[%clk 0:01:33]} 13. Bxd5 {[%clk 0:02:16]}  exd5 {[%clk 0:01:33]} 14. Qxd5+ {[%clk 0:02:17]}  Kh8 {[%clk 0:01:34]} 15. Ne4 {[%clk 0:01:47]}  Be5 {[%clk 0:00:38]} 16. Qxa8 {[%clk 0:01:46]}  Qc7 {[%clk 0:00:30]} 17. Qd5 {[%clk 0:01:46]}  Bb7 {[%clk 0:00:31]} 18. Qc4 {[%clk 0:01:39]}  Bd4 {[%clk 0:00:27]} 19. Bf4 {[%clk 0:01:21]}  Qc6 {[%clk 0:00:27]} 20. e3 {[%clk 0:00:56]}  Bxb2 {[%clk 0:00:23]} 21. Rb1 {[%clk 0:00:56]}  Bf6 {[%clk 0:00:17]} 22. O-O {[%clk 0:00:55]}  Be7 {[%clk 0:00:13]} 23. h4 {[%clk 0:00:44]}  h6 {[%clk 0:00:14]} 24. f3 {[%clk 0:00:44]}  Qg6 {[%clk 0:00:09]} 25. Kf2 {[%clk 0:00:40]}  Qf5 {[%clk 0:00:07]} 26. Rh1 {[%clk 0:00:21]}  Bc6 {[%clk 0:00:07]} 27. Qc2 {[%clk 0:00:20]}  b5 {[%clk 0:00:06]} 28. axb5 {[%clk 0:00:20]}  axb5 {[%clk 0:00:07]} 29. g4 {[%clk 0:00:20]}  Qe6 {[%clk 0:00:07]} 30. h5 {[%clk 0:00:20]}  Ne5 {[%clk 0:00:05]} 31. Bxe5 {[%clk 0:00:16]}  Qxe5 {[%clk 0:00:06]} 32. Kg2 {[%clk 0:00:15]}  Qe6 {[%clk 0:00:04]} 33. Qb3 {[%clk 0:00:15]}  c4 {[%clk 0:00:04]} 34. Qc2 {[%clk 0:00:14]}  cxd3 {[%clk 0:00:02]} 35. Qxd3 {[%clk 0:00:15]}  b4 {[%clk 0:00:03]} 36. Rhf1 {[%clk 0:00:13]}  Qa2+ {[%clk 0:00:02]} 37. Rf2 {[%clk 0:00:12]}  Qe6 {[%clk 0:00:03]} 38. Rc1 {[%clk 0:00:12]}  Bd5 {[%clk 0:00:03]} 39. Qd4 {[%clk 0:00:08]}  Bh4 {[%clk 0:00:03]} 40. Rff1 {[%clk 0:00:07]}  Rd8 {[%clk 0:00:03]} 41. Rcd1 {[%clk 0:00:07]}  Kh7 {[%clk 0:00:02]} 42. Qd3 {[%clk 0:00:07]}  Kh8 {[%clk 0:00:02]} 43. Qd4 {[%clk 0:00:08]}  b3 {[%clk 0:00:02]} 44. Rd2 {[%clk 0:00:05]}  Rd7 {[%clk 0:00:02]} 45. Qb4 {[%clk 0:00:04]}  Kh7 {[%clk 0:00:01]} 46. Rfd1 {[%clk 0:00:05]}  Bc6 {[%clk 0:00:01]} 47. Rxd7 {[%clk 0:00:04]}  Bxd7 {[%clk 0:00:02]} 48. Nc5 {[%clk 0:00:05]}  Qxe3 {[%clk 0:00:02]} 49. Qe4+ {[%clk 0:00:04]}  Qxe4 {[%clk 0:00:02]} 50. Nxe4 {[%clk 0:00:03]}  Be6 {[%clk 0:00:02]} 51. Rd6 {[%clk 0:00:03]}  Bc4 {[%clk 0:00:02]} 52. Rb6 {[%clk 0:00:02]}  Bd5 {[%clk 0:00:02]} 53. Rb5 {[%clk 0:00:02]}  Bc4 {[%clk 0:00:02]} 54. Rb7 {[%clk 0:00:01]}  Bd5 {[%clk 0:00:02]} 55. Rb5 {[%clk 0:00:02]}  Bc4 {[%clk 0:00:02]} 56. Rb4 {[%clk 0:00:02]}  Bd5 {[%clk 0:00:02]} 57. Nd2 {[%clk 0:00:03]}  Be1 {[%clk 0:00:02]} 58. Rd4 {[%clk 0:00:03]}  Bf7 {[%clk 0:00:02]} 59. Nb1 {[%clk 0:00:01]}  Ba5 {[%clk 0:00:02]} 60. Rd7 {[%clk 0:00:01]}  Be6 {[%clk 0:00:01]} 61. Ra7 {[%clk 0:00:02]}  Be1 {[%clk 0:00:01]} 62. Kf1 {[%clk 0:00:01]}  Bb4 {[%clk 0:00:02]} 63. Rb7 {[%clk 0:00:01]}  Bc4+ {[%clk 0:00:02]} 64. Kf2 {[%clk 0:00:01]}  Bd6 {[%clk 0:00:03]} 65. Nd2 {[%clk 0:00:01]}  Bd5 {[%clk 0:00:04]} 0-1


[Site "https://www.chess.com"]

[Event "Titled Tuesday Blitz January 17 Early 2023"]
[White "Korobov, Anton"]
[Black "Samunenkov, Ihor"]
[WhiteFideId "14105730"]
[BlackFideId "14187086"]
[WhiteElo "2664"]
[BlackElo "2501"]
[Result "0-1"]
[Round "04"]
[TimeControl "180+2"]
[Date "2023.01.17"]
[WhiteClock "0:00:01"]
[BlackClock "0:00:03"]

1. c4 {[%clk 0:03:00]}  c5 {[%clk 0:02:58]} 2. Nf3 {[%clk 0:02:59]}  Nf6 {[%clk 0:02:58]} 3. Nc3 {[%clk 0:02:58]}  Nc6 {[%clk 0:02:58]} 4. g3 {[%clk 0:02:58]}  d5 {[%clk 0:02:57]} 5. cxd5 {[%clk 0:02:58]}  Nxd5 {[%clk 0:02:58]} 6. Bg2 {[%clk 0:02:58]}  g6 {[%clk 0:02:59]} 7. h4 {[%clk 0:02:57]}  h5 {[%clk 0:02:49]} 8. Ng5 {[%clk 0:02:48]}  e6 {[%clk 0:02:27]} 9. O-O {[%clk 0:02:33]}  Bg7 {[%clk 0:02:15]} 10. Nxd5 {[%clk 0:02:05]}  exd5 {[%clk 0:02:14]} 11. Qb3 {[%clk 0:01:56]}  Nd4 {[%clk 0:01:37]} 12. Qxd5 {[%clk 0:01:51]}  Nxe2+ {[%clk 0:01:34]} 13. Kh2 {[%clk 0:01:51]}  O-O {[%clk 0:01:34]} 14. Re1 {[%clk 0:01:43]}  Nxc1 {[%clk 0:01:23]} 15. Raxc1 {[%clk 0:01:44]}  Bd4 {[%clk 0:00:53]} 16. f4 {[%clk 0:00:40]}  Bf5 {[%clk 0:00:37]} 17. b3 {[%clk 0:00:41]}  Rb8 {[%clk 0:00:26]} 18. Re2 {[%clk 0:00:24]}  b6 {[%clk 0:00:22]} 19. Rce1 {[%clk 0:00:21]}  Bf6 {[%clk 0:00:21]} 20. Ne4 {[%clk 0:00:14]}  Be7 {[%clk 0:00:15]} 21. Nc3 {[%clk 0:00:13]}  Bf6 {[%clk 0:00:11]} 22. Qc4 {[%clk 0:00:10]}  Qd7 {[%clk 0:00:08]} 23. Nd5 {[%clk 0:00:10]}  Qd6 {[%clk 0:00:06]} 24. Re5 {[%clk 0:00:08]}  Bxe5 {[%clk 0:00:05]} 25. fxe5 {[%clk 0:00:09]}  Qd8 {[%clk 0:00:05]} 26. Qf4 {[%clk 0:00:09]}  Kg7 {[%clk 0:00:04]} 27. Nf6 {[%clk 0:00:07]}  Qd4 {[%clk 0:00:05]} 28. Nxh5+ {[%clk 0:00:07]}  gxh5 {[%clk 0:00:04]} 29. Qxf5 {[%clk 0:00:07]}  Qg4 {[%clk 0:00:04]} 30. Qf6+ {[%clk 0:00:08]}  Kg8 {[%clk 0:00:04]} 31. Rf1 {[%clk 0:00:03]}  Qg6 {[%clk 0:00:03]} 32. Qe7 {[%clk 0:00:03]}  Rbe8 {[%clk 0:00:03]} 33. Qc7 {[%clk 0:00:03]}  Rc8 {[%clk 0:00:03]} 34. Qxa7 {[%clk 0:00:02]}  Rcd8 {[%clk 0:00:03]} 35. Rf6 {[%clk 0:00:01]}  Qg7 {[%clk 0:00:04]} 36. Rf5 {[%clk 0:00:01]}  f6 {[%clk 0:00:03]} 0-1


[Site "https://www.chess.com"]

[Event "Titled Tuesday Blitz January 17 Early 2023"]
[White "Lenderman, Aleksandr"]
[Black "Boruchovsky, Avital"]
[WhiteFideId "2021285"]
[BlackFideId "2800055"]
[WhiteElo "2572"]
[BlackElo "2539"]
[Result "1-0"]
[Round "04"]
[TimeControl "180+2"]
[Date "2023.01.17"]
[WhiteClock "0:02:04"]
[BlackClock "0:00:03"]

1. Nf3 {[%clk 0:03:00]}  c5 {[%clk 0:02:57]} 2. c3 {[%clk 0:02:57]}  d5 {[%clk 0:02:56]} 3. d4 {[%clk 0:02:56]}  e6 {[%clk 0:02:50]} 4. Bf4 {[%clk 0:02:55]}  Nc6 {[%clk 0:02:49]} 5. e3 {[%clk 0:02:55]}  Nf6 {[%clk 0:02:48]} 6. Nbd2 {[%clk 0:02:54]}  b6 {[%clk 0:02:47]} 7. Bb5 {[%clk 0:02:52]}  Bd7 {[%clk 0:02:47]} 8. O-O {[%clk 0:02:52]}  a6 {[%clk 0:02:47]} 9. Bd3 {[%clk 0:02:51]}  cxd4 {[%clk 0:02:44]} 10. exd4 {[%clk 0:02:51]}  b5 {[%clk 0:02:41]} 11. Ne5 {[%clk 0:02:50]}  Be7 {[%clk 0:02:37]} 12. Re1 {[%clk 0:02:49]}  O-O {[%clk 0:02:28]} 13. a3 {[%clk 0:02:49]}  Nxe5 {[%clk 0:02:27]} 14. dxe5 {[%clk 0:02:48]}  Ne8 {[%clk 0:02:28]} 15. Qh5 {[%clk 0:02:47]}  g6 {[%clk 0:02:21]} 16. Qh6 {[%clk 0:02:47]}  f6 {[%clk 0:02:09]} 17. exf6 {[%clk 0:02:47]}  Bxf6 {[%clk 0:02:04]} 18. Nf3 {[%clk 0:02:38]}  Bg7 {[%clk 0:01:52]} 19. Qg5 {[%clk 0:02:38]}  Bf6 {[%clk 0:01:29]} 20. Qg3 {[%clk 0:02:37]}  Ng7 {[%clk 0:01:29]} 21. Be5 {[%clk 0:02:35]}  Nh5 {[%clk 0:01:29]} 22. Bxf6 {[%clk 0:02:29]}  Qxf6 {[%clk 0:01:27]} 23. Qe5 {[%clk 0:02:27]}  Nf4 {[%clk 0:01:02]} 24. Qxf6 {[%clk 0:02:27]}  Rxf6 {[%clk 0:01:03]} 25. Ne5 {[%clk 0:02:27]}  Be8 {[%clk 0:00:51]} 26. Bf1 {[%clk 0:02:25]}  g5 {[%clk 0:00:51]} 27. g3 {[%clk 0:02:22]}  Ng6 {[%clk 0:00:51]} 28. Ng4 {[%clk 0:02:22]}  Rf8 {[%clk 0:00:43]} 29. Rxe6 {[%clk 0:02:20]}  Kg7 {[%clk 0:00:34]} 30. Rd6 {[%clk 0:02:17]}  Bf7 {[%clk 0:00:29]} 31. Ne3 {[%clk 0:02:18]}  Ne7 {[%clk 0:00:24]} 32. Rd7 {[%clk 0:02:14]}  Kf6 {[%clk 0:00:19]} 33. Re1 {[%clk 0:02:12]}  Be6 {[%clk 0:00:20]} 34. Rd6 {[%clk 0:02:12]}  Kf7 {[%clk 0:00:17]} 35. Nc2 {[%clk 0:02:12]}  Bf5 {[%clk 0:00:04]} 36. Nd4 {[%clk 0:02:12]}  Rad8 {[%clk 0:00:03]} 37. Rxa6 {[%clk 0:02:05]}  Bg6 {[%clk 0:00:02]} 38. Ra7 {[%clk 0:02:04]}  Rde8 {[%clk 0:00:03]} 39. Bxb5 {[%clk 0:02:04]} 1-0


[Site "https://www.chess.com"]

[Event "Titled Tuesday Blitz January 17 Early 2023"]
[White "Gholami Orimi, Mahdi"]
[Black "Rohith Krishna S"]
[WhiteFideId "12558486"]
[BlackFideId "46617051"]
[WhiteElo "2420"]
[BlackElo "2385"]
[Result "1-0"]
[Round "04"]
[TimeControl "180+2"]
[Date "2023.01.17"]
[WhiteClock "0:00:12"]
[BlackClock "0:00:15"]

1. d4 {[%clk 0:03:00]}  Nf6 {[%clk 0:02:57]} 2. c4 {[%clk 0:03:00]}  e6 {[%clk 0:02:57]} 3. Nc3 {[%clk 0:02:59]}  d5 {[%clk 0:02:58]} 4. Nf3 {[%clk 0:02:57]}  Be7 {[%clk 0:02:57]} 5. Bf4 {[%clk 0:02:55]}  c6 {[%clk 0:02:55]} 6. e3 {[%clk 0:02:55]}  O-O {[%clk 0:02:55]} 7. Rc1 {[%clk 0:02:54]}  b6 {[%clk 0:02:43]} 8. h3 {[%clk 0:02:53]}  Bb7 {[%clk 0:02:44]} 9. cxd5 {[%clk 0:02:52]}  cxd5 {[%clk 0:02:43]} 10. Bd3 {[%clk 0:02:50]}  Nc6 {[%clk 0:02:42]} 11. O-O {[%clk 0:02:51]}  Bd6 {[%clk 0:02:40]} 12. Ne5 {[%clk 0:02:48]}  Ne7 {[%clk 0:02:22]} 13. Nb5 {[%clk 0:02:45]}  Bb8 {[%clk 0:02:22]} 14. Ng4 {[%clk 0:02:39]}  Ne8 {[%clk 0:02:12]} 15. Bxb8 {[%clk 0:02:16]}  Qxb8 {[%clk 0:02:10]} 16. Ne5 {[%clk 0:02:16]}  Qd8 {[%clk 0:02:05]} 17. Bb1 {[%clk 0:01:49]}  a6 {[%clk 0:01:54]} 18. Nc3 {[%clk 0:01:47]}  Rc8 {[%clk 0:01:41]} 19. Na4 {[%clk 0:01:42]}  f6 {[%clk 0:01:37]} 20. Rxc8 {[%clk 0:01:37]}  Nxc8 {[%clk 0:01:36]} 21. Bxh7+ {[%clk 0:00:54]}  Kxh7 {[%clk 0:01:35]} 22. Qh5+ {[%clk 0:00:55]}  Kg8 {[%clk 0:01:35]} 23. Ng6 {[%clk 0:00:55]}  Ned6 {[%clk 0:01:17]} 24. Rc1 {[%clk 0:00:55]}  Nf7 {[%clk 0:01:14]} 25. Nxf8 {[%clk 0:00:47]}  Kxf8 {[%clk 0:01:15]} 26. Qg4 {[%clk 0:00:46]}  Qd7 {[%clk 0:01:14]} 27. b3 {[%clk 0:00:46]}  Bc6 {[%clk 0:01:12]} 28. Nb2 {[%clk 0:00:45]}  Ncd6 {[%clk 0:01:09]} 29. Nd3 {[%clk 0:00:45]}  Bb7 {[%clk 0:00:31]} 30. Nf4 {[%clk 0:00:44]}  Nd8 {[%clk 0:00:32]} 31. Qh5 {[%clk 0:00:39]}  Ne8 {[%clk 0:00:32]} 32. Qh8+ {[%clk 0:00:18]}  Ke7 {[%clk 0:00:29]} 33. h4 {[%clk 0:00:17]}  Kd6 {[%clk 0:00:29]} 34. Ng6 {[%clk 0:00:15]}  Qf7 {[%clk 0:00:28]} 35. h5 {[%clk 0:00:15]}  Bc6 {[%clk 0:00:20]} 36. a4 {[%clk 0:00:15]}  Bd7 {[%clk 0:00:20]} 37. h6 {[%clk 0:00:13]}  Qxg6 {[%clk 0:00:15]} 38. Qf8# {[%clk 0:00:12]} 1-0


[Site "https://www.chess.com"]